fUST/lending_fUST_20250927
["ID","MTS","AMOUNT","RATE_DAILY","PERIOD"]
[388022963,1758967848026,-485.82,0.00036164,9]
[388022964,1758967848036,-480.0,0.00036164,9]
[388022965,1758967848046,-480.0,0.00036164,9]
[388022966,1758967848056,-559.51,0.00036164,9]
[388022967,1758967848066,-480.0,0.00036164,9]
[388022968,1758967848075,-480.0,0.00036164,9]
[388022969,1758967848084,-480.0,0.00036164,9]
[388022970,1758967848094,-1127.16,0.00036164,9]
[388022971,1758967848103,-735.24,0.00036164,9]
[388022972,1758967848113,-480.0,0.00036164,9]
[388022973,1758967848122,-480.0,0.00036164,9]
[388022974,1758967848132,-486.58,0.00036164,9]
[388022975,1758967848141,-827.09,0.00036164,9]
[388022976,1758967848152,-947.01,0.00036164,9]
[388022977,1758967848162,-989.0,0.00036164,9]
[388022978,1758967848172,-480.0,0.00036164,9]
[388022979,1758967848187,-480.0,0.00036164,9]
[388022980,1758967848198,-1743.89,0.00036164,9]
[388022981,1758967848208,-480.0,0.00036164,9]
[388022982,1758967848217,-480.0,0.00036164,9]
[388022983,1758967848229,-480.0,0.00036164,9]
[388022984,1758967848238,-480.0,0.00036164,9]
[388022985,1758967848248,-709.42,0.00036164,9]
[388022986,1758967848257,-153.69326161,0.00036164,9]
[388022987,1758967848267,-480.0,0.00036164,9]
[388022988,1758967848276,-480.0,0.00036164,9]
[388022989,1758967848286,-480.0,0.00036164,9]
[388022990,1758967848295,-480.0,0.00036164,9]
[388022991,1758967848305,-480.0,0.00036164,9]
[388022992,1758967848314,-480.0,0.00036164,9]
[388022993,1758967848324,-480.0,0.00036164,9]
[388022994,1758967848333,-480.0,0.00036164,9]
[388022995,1758967848343,-480.0,0.00036164,9]
[388022996,1758967848354,-480.0,0.00036164,9]
[388022997,1758967848364,-745.53,0.00036164,9]
[388022998,1758967848374,-480.0,0.00036164,9]
[388022999,1758967848387,-480.0,0.00036164,9]
[388023000,1758967848397,-592.88,0.00036164,9]
[388023001,1758967848407,-480.0,0.00036164,9]
[388023002,1758967848419,-795.37,0.00036164,9]
[388023003,1758967848428,-1579.53,0.00036164,9]
[388023004,1758967848438,-566.39,0.00036164,9]
[388023005,1758967848448,-480.0,0.00036164,9]
[388023006,1758967848457,-480.0,0.00036164,9]
[388023007,1758967848467,-480.0,0.00036164,9]
[388023008,1758967848476,-1941.07,0.00036164,9]
[388023009,1758967848485,-480.0,0.00036164,9]
[388023010,1758967848494,-480.0,0.00036164,9]
[388023011,1758967848503,-480.0,0.00036164,9]
[388023012,1758967848512,-494.35981719,0.00036164,9]
[388023013,1758967848522,-2370.34,0.00036164,9]
[388023014,1758967848531,-480.0,0.00036164,9]
[388023015,1758967848540,-480.0,0.00036164,9]
[388023016,1758967848550,-480.0,0.00036164,9]
[388023017,1758967848560,-480.0,0.00036164,9]
[388023018,1758967848569,-480.0,0.00036164,9]
[388023019,1758967848579,-480.0,0.00036164,9]
[388023020,1758967848588,-1122.46,0.00036164,9]
[388023021,1758967848597,-480.0,0.00036164,9]
[388023022,1758967848607,-729.18,0.00036164,9]
[388023023,1758967848616,-480.0,0.00036164,9]
[388023024,1758967848625,-1453.76,0.00036164,9]
[388023025,1758967848634,-725.48,0.00036164,9]
[388023026,1758967848644,-480.0,0.00036164,9]
[388023027,1758967848653,-480.0,0.00036164,9]
[388023028,1758967848662,-480.0,0.00036164,9]
[388023029,1758967848672,-480.0,0.00036164,9]
[388023030,1758967848682,-480.0,0.00036164,9]
[388023031,1758967848691,-527.64147934,0.00036164,9]
[388023032,1758967848700,-1062.12750143,0.00036164,9]
[388023033,1758967848710,-480.0,0.00036164,9]
[388023034,1758967848862,-480.0,0.00036164,9]
[388023035,1758967848871,-480.0,0.00036164,9]
[388023036,1758967848882,-1141.45,0.00036164,9]
[388023037,1758967848892,-480.0,0.00036164,9]
[388023038,1758967848902,-480.0,0.00036164,9]
[388023039,1758967848911,-630.97,0.00036164,9]
[388023040,1758967848921,-228.10539501,0.00036164,9]
[388023041,1758967848931,-480.0,0.00036164,9]
[388023042,1758967848940,-480.0,0.00036164,9]
[388023043,1758967848949,-480.0,0.00036164,9]
[388023044,1758967848959,-569.42,0.00036164,9]
[388023045,1758967848969,-480.0,0.00036164,9]
[388023046,1758967848978,-1089.56,0.00036164,9]
[388023047,1758967848988,-818.47,0.00036164,9]
[388023048,1758967848997,-480.0,0.00036164,9]
[388023049,1758967849008,-480.0,0.00036164,9]
[388023050,1758967849016,-480.0,0.00036164,9]
[388023051,1758967849026,-480.0,0.00036164,9]
[388023052,1758967849035,-480.0,0.00036164,9]
[388023053,1758967849045,-480.0,0.00036164,9]
[388023054,1758967849054,-470.35181882,0.00036164,9]
[388023055,1758967849064,-480.0,0.00036164,9]
[388023056,1758967849074,-480.0,0.00036164,9]
[388023057,1758967849083,-480.0,0.00036164,9]
[388023058,1758967849093,-602.48,0.00036164,9]
[388023059,1758967849102,-480.0,0.00036164,9]
[388023060,1758967849111,-480.0,0.00036164,9]
[388023061,1758967849120,-480.0,0.00036164,9]
[388023062,1758967849130,-480.0,0.00036164,9]
[388023063,1758967849139,-979.91,0.00036164,9]
[388023064,1758967849149,-1632.25,0.00036164,9]
[388023065,1758967849159,-480.0,0.00036164,9]
[388023066,1758967849169,-565.38,0.00036164,9]
[388023067,1758967849180,-827.26,0.00036164,9]
[388023068,1758967849192,-480.0,0.00036164,9]
[388023069,1758967849202,-480.0,0.00036164,9]
[388023070,1758967849211,-480.0,0.00036164,9]
[388023071,1758967849220,-480.0,0.00036164,9]
[388023072,1758967849230,-577.81,0.00036164,9]
[388023073,1758967849239,-1097.15,0.00036164,9]
[388023074,1758967849249,-502.86,0.00036164,9]
[388023075,1758967849259,-480.0,0.00036164,9]
[388023076,1758967849268,-1657.79,0.00036164,9]
[388023077,1758967849278,-480.0,0.00036164,9]
[388023078,1758967849288,-480.0,0.00036164,9]
[388023079,1758967849297,-480.0,0.00036164,9]
[388023080,1758967849306,-563.52,0.00036164,9]
[388023081,1758967849316,-483.07,0.00036164,9]
[388023082,1758967849326,-480.0,0.00036164,9]
[388023083,1758967849335,-816.59,0.00036164,9]
[388023084,1758967849345,-480.0,0.00036164,9]
[388023085,1758967849355,-556.43830024,0.00036164,9]
[388023086,1758967849364,-480.0,0.00036164,9]
[388023087,1758967849373,-480.0,0.00036164,9]
[388023088,1758967849383,-944.15,0.00036164,9]
[388023089,1758967849392,-480.0,0.00036164,9]
[388023090,1758967849402,-939.44,0.00036164,9]
[388023091,1758967849412,-412.58439779,0.00036164,9]
[388023092,1758967849424,-480.0,0.00036164,9]
[388023093,1758967849433,-480.0,0.00036164,9]
[388023094,1758967849443,-480.0,0.00036164,9]
[388023095,1758967849452,-480.0,0.00036164,9]
[388023096,1758967849462,-480.0,0.00036164,9]
[388023097,1758967849471,-480.0,0.00036164,9]
[388023098,1758967849480,-480.0,0.00036164,9]
[388023099,1758967849490,-480.0,0.00036164,9]
[388023100,1758967849499,-480.0,0.00036164,9]
[388023101,1758967849508,-480.0,0.00036164,9]
[388023102,1758967849518,-480.0,0.00036164,9]
[388023103,1758967849528,-480.0,0.00036164,9]
[388023104,1758967849538,-480.0,0.00036164,9]
[388023105,1758967849548,-480.0,0.00036164,9]
[388023106,1758967849556,-621.78,0.00036164,9]
[388023107,1758967849565,-919.75,0.00036164,9]
[388023108,1758967849574,-488.01,0.00036164,9]
[388023109,1758967849584,-480.0,0.00036164,9]
[388023110,1758967849594,-2761.97,0.00036164,9]
[388023111,1758967849604,-956.73,0.00036164,9]
[388023112,1758967849615,-480.0,0.00036164,9]
[388023113,1758967849626,-518.69412798,0.00036164,9]
[388023114,1758967849637,-553.01,0.00036164,9]
[388023115,1758967849647,-480.0,0.00036164,9]
[388023116,1758967849657,-2480.44,0.00036164,9]
[388023117,1758967849667,-2813.27,0.00036164,9]
[388023118,1758967849678,-480.0,0.00036164,9]
[388023119,1758967849687,-480.0,0.00036164,9]
[388023120,1758967849698,-1892.2,0.00036164,9]
[388023121,1758967849708,-500.66,0.00036164,9]
[388023122,1758967849718,-480.0,0.00036164,9]
[388023123,1758967849729,-480.0,0.00036164,9]
[388023124,1758967849740,-671.69,0.00036164,9]
[388023125,1758967849750,-698.22,0.00036164,9]
[388023126,1758967849760,-814.55,0.00036164,9]
[388023127,1758967849769,-3198.24,0.00036164,9]
[388023128,1758967849779,-480.0,0.00036164,9]
[388023129,1758967849789,-516.51,0.00036164,9]
[388023130,1758967849798,-480.0,0.00036164,9]
[388023131,1758967849808,-480.0,0.00036164,9]
[388023132,1758967849819,-480.0,0.00036164,9]
[388023133,1758967849829,-480.0,0.00036164,9]
[388023134,1758967849841,-480.0,0.00036164,9]
[388023135,1758967849851,-522.85114965,0.00036164,9]
[388023136,1758967849862,-480.0,0.00036164,9]
[388023137,1758967849875,-480.0,0.00036164,9]
[388023138,1758967849885,-480.0,0.00036164,9]
[388023139,1758967849896,-480.0,0.00036164,9]
[388023140,1758967849907,-669.16,0.00036164,9]
[388023141,1758967849917,-480.0,0.00036164,9]
[388023142,1758967849927,-480.0,0.00036164,9]
[388023143,1758967849938,-1217.4,0.00036164,9]
[388023144,1758967849949,-640.97,0.00036164,9]
[388023145,1758967849959,-1787.15,0.00036164,9]
[388023146,1758967849970,-480.0,0.00036164,9]
[388023147,1758967849980,-259.86,0.00036164,9]
[388023148,1758967849990,-480.0,0.00036164,9]
[388023149,1758967850000,-562.26,0.00036164,9]
[388023150,1758967850011,-963.64,0.00036164,9]
[388023151,1758967850021,-480.0,0.00036164,9]
[388023152,1758967850032,-480.0,0.00036164,9]
[388023153,1758967850042,-480.0,0.00036164,9]
[388023154,1758967850052,-520.23,0.00036164,9]
[388023155,1758967850062,-480.0,0.00036164,9]
[388023156,1758967850072,-480.0,0.00036164,9]
[388023157,1758967850082,-480.0,0.00036164,9]
[388023158,1758967850092,-500.0,0.00036164,9]
[388023159,1758967850102,-480.0,0.00036164,9]
[388023160,1758967850111,-480.0,0.00036164,9]
[388023161,1758967850121,-480.0,0.00036164,9]
[388023162,1758967850130,-480.0,0.00036164,9]
[388023163,1758967850140,-480.0,0.00036164,9]
[388023164,1758967850150,-480.0,0.00036164,9]
[388023165,1758967850162,-480.0,0.00036164,9]
[388023166,1758967850172,-488.18743789,0.00036164,9]
[388023167,1758967850185,-1280.75,0.00036164,9]
[388023168,1758967850195,-480.0,0.00036164,9]
[388023169,1758967850204,-480.0,0.00036164,9]
[388023170,1758967850214,-480.0,0.00036164,9]
[388023171,1758967850225,-480.0,0.00036164,9]
[388023172,1758967850235,-480.0,0.00036164,9]
[388023173,1758967850244,-480.0,0.00036164,9]
[388023174,1758967850254,-494.55,0.00036164,9]
[388023175,1758967850266,-480.0,0.00036164,9]
[388023176,1758967850277,-480.0,0.00036164,9]
[388023177,1758967850287,-631.42,0.00036164,9]
[388023178,1758967850297,-480.0,0.00036164,9]
[388023179,1758967850309,-480.0,0.00036164,9]
[388023180,1758967850319,-480.0,0.00036164,9]
[388023181,1758967850330,-480.0,0.00036164,9]
[388023182,1758967850339,-2853.04,0.00036164,9]
[388023183,1758967850348,-544.74,0.00036164,9]
[388023184,1758967850358,-480.0,0.00036164,9]
[388023185,1758967850368,-398.369841,0.00036164,9]
[388023186,1758967850378,-480.0,0.00036164,9]
[388023187,1758967850388,-1188.21,0.00036164,9]
[388023188,1758967850399,-491.1155701,0.00036164,9]
[388023189,1758967850410,-480.0,0.00036164,9]
[388023190,1758967850420,-480.0,0.00036164,9]
[388023191,1758967850431,-480.0,0.00036164,9]
[388023192,1758967850442,-480.0,0.00036164,9]
[388023193,1758967850452,-480.0,0.00036164,9]
[388023194,1758967850463,-1333.43,0.00036164,9]
[388023195,1758967850473,-480.0,0.00036164,9]
[388023196,1758967850483,-542.83,0.00036164,9]
[388023197,1758967850494,-480.0,0.00036164,9]
[388023198,1758967850503,-480.0,0.00036164,9]
[388023199,1758967850513,-480.0,0.00036164,9]
[388023200,1758967850523,-507.26226785,0.00036164,9]
[388023201,1758967850533,-2206.79,0.00036164,9]
[388023202,1758967850542,-480.0,0.00036164,9]
[388023203,1758967850551,-480.0,0.00036164,9]
[388023204,1758967850560,-480.0,0.00036164,9]
[388023205,1758967850570,-1580.77,0.00036164,9]
[388023206,1758967850581,-500.0,0.00036164,9]
[388023207,1758967850590,-480.0,0.00036164,9]
[388023208,1758967850600,-567.89,0.00036164,9]
[388023209,1758967850609,-480.0,0.00036164,9]
[388023210,1758967850619,-536.88,0.00036164,9]
[388023211,1758967850629,-1000.0,0.00036164,9]
[388023212,1758967850638,-1238.84,0.00036164,9]
[388023213,1758967850647,-480.0,0.00036164,9]
[388023214,1758967850656,-480.0,0.00036164,9]
[388023215,1758967850666,-480.0,0.00036164,9]
[388023216,1758967850676,-480.0,0.00036164,9]
[388023217,1758967850685,-480.0,0.00036164,9]
[388023218,1758967850694,-558.44,0.00036164,9]
[388023219,1758967850703,-1769.88672733,0.00036164,3]
[388023220,1758967851393,-480.0,0.00035616,9]
[388023221,1758967851402,-2252.75,0.00036164,3]
[388023222,1758967852167,-19.99545786,0.00035616,9]
[388023223,1758967852205,-460.00454214,0.00035616,9]
[388023224,1758967852217,-226.70491568,0.00035616,9]
[388023225,1758967853063,-253.29508432,0.00035616,9]
[388023226,1758967853072,-480.0,0.00035616,9]
[388023227,1758967853082,-512.60491568,0.00035616,9]
[388023228,1758968121011,-157.0,0.00023726,11]
[388023229,1758968121032,-51.02593212,0.00032,120]
[388023230,1758968121646,-126.38488037,0.00032,120]
[388023231,1758968121668,-81.64105175,0.000323,120]
[388023252,1758968727333,-208.02593212,0.00032,120]
[388023253,1758968728027,-208.02593212,0.00025,2]
[388023256,1758968838129,-193.2587176,0.00024999,2]
[388023258,1758968869771,10000.01,0.00018,2]
[388023259,1758968869793,7636.5375853,0.00018,2]
[388023260,1758968873872,527.94578729,0.00018,2]
[388023261,1758968874354,-106.7412824,0.00024999,2]
[388023262,1758968884343,-463.4278492,0.00024774,2]
[388023263,1758968891781,9073.1543016,0.00021,5]
[388023264,1758968891804,926.8456984,0.00021,5]
[388023265,1758968892787,419.21045963,0.00010618,2]
[388023266,1758968894445,2000.0,0.000125,2]
[388023270,1758968899036,-300.0,0.00024999,2]
[388023272,1758968904378,-6748.25101849,0.00025,2]
[388023273,1758968904511,-2604.41695061,0.00025,2]
[388023274,1758968904534,-4791.17609878,0.00025,2]
[388023275,1758968908324,10000.01,0.00025,3]
[388023276,1758968908346,739.96527022,0.00025,3]
[388023277,1758968909138,356.55743892,0.00022,2]
[388023278,1758968910805,8903.48729086,0.0002,2]
[388023279,1758968910827,5589.99580574,0.0002,2]
[388023280,1758968911340,4410.01419426,0.00024,2]
[388023281,1758968911362,3859.1062811,0.00024,2]
[388023282,1758968912484,618.77258876,0.00025,2]
[388023283,1758968912696,4611.23217161,0.00025,7]
[388023284,1758968912821,910.89895853,0.00017,2]
[388023285,1758968912844,1964.73487057,0.00017,2]
[388023286,1758968913250,270.8400594,0.00022,5]
[388023287,1758968913946,3328.19032668,0.00025,2]
[388023288,1758968914985,10000.01,0.0002,2]
[388023289,1758968915007,9999.99,0.0002,2]
[388023290,1758968915216,0.02,0.00015,2]
[388023291,1758968915238,460.87,0.00015,2]
[388023292,1758968915451,9539.14,0.00025,2]
[388023293,1758968915473,10000.01,0.00025,2]
[388023294,1758968915496,93.55051504,0.00025,2]
[388023295,1758968916083,1711.11752083,0.00024,2]
[388023296,1758968917734,4239.56116079,0.00018,2]
[388023297,1758968918701,3955.78080334,0.00023,3]
[388023298,1758968918723,10000.01,0.00023,3]
[388023299,1758968918746,6176.72492229,0.00023,3]
[388023300,1758968919254,3823.28507771,0.0002,2]
[388023301,1758968919279,4692.85197856,0.0002,2]
[388023302,1758968919551,556.72031642,0.00022,7]
[388023303,1758968920498,4750.43770502,0.0002,2]
[388023304,1758968920520,10000.01,0.0002,2]
[388023305,1758968920542,8249.55229498,0.0002,2]
[388023306,1758968921061,163.3399967,0.00024,2]
[388023307,1758968921124,663.95392898,0.000245,2]
[388023308,1758968921243,923.16377934,0.0002,2]
[388023309,1758968921270,138.34586255,0.0002,2]
[388023310,1758968924393,-2767.97584932,0.0002,2]
[388023311,1758968924590,-4464.05830136,0.0002,2]
[388023312,1758968924620,-211.33895002,0.0002,2]
[388023313,1758968924714,-649.21549724,0.0002,2]
[388023315,1758968958080,-5000.0,0.00024953,2]
[388023316,1758968958099,-533.89623038,0.00025205,2]
[388023317,1758968958119,-5000.0,0.00025483,2]
[388023318,1758968958140,-4548.30368006,0.0002574,2]
[388023319,1758968968093,-4487.40916227,0.00025483,2]
[388023320,1758968974080,-5000.0,0.00025228,2]
[388023321,1758968974102,-512.59083773,0.00025483,2]
[388023322,1758968974124,-381.57094393,0.0002574,2]
[388023352,1758969032651,-3453.05864876,0.00024703,13]
[388023353,1758969032660,-1200.0,0.00024952,2]
[388023354,1758969032669,-5000.0,0.00024953,13]
[388023356,1758969032678,-300.0,0.000255,2]
[388023358,1758969032688,-300.0,0.000255,2]
[388023360,1758969032697,-300.0,0.000255,2]
[388023362,1758969032711,-300.0,0.000255,2]
[388023364,1758969032720,-300.0,0.000255,2]
[388023367,1758969032729,-70.12537601,0.0002574,2]
[388023370,1758969032738,-1523.15792939,0.00026,10]
[388023373,1758969032748,-1670.86394425,0.00026,30]
[388023375,1758969032756,-1257.98623104,0.00026,2]
[388023378,1758969032765,-161.0,0.00026,5]
[388023381,1758969032774,-200.0,0.0002654,14]
[388023384,1758969032783,-280.83065581,0.00027,5]
[388023386,1758969032792,-400.0,0.00027155,2]
[388023388,1758969032801,-1000.0,0.00027742,30]
[388023390,1758969032809,-6759.5526045,0.00029403,2]
[388023392,1758969032820,-355.8089605,0.00030017,2]
[388023394,1758969032829,-321.75772868,0.00030544,2]
[388023396,1758969032837,-65.15464112,0.00032,120]
[388023398,1758969032847,-312.32402557,0.00032152,2]
[388023400,1758969032856,-432.4315766,0.0003244,2]
[388023402,1758969032865,-500.0,0.00032539,2]
[388023404,1758969032873,-500.0,0.00032539,2]
[388023406,1758969032882,-278.07821858,0.00032539,2]
[388023408,1758969032891,-40596.58372436,0.0003254,2]
[388023410,1758969032901,-197.678241,0.0003254,60]
[388023412,1758969032910,-213.7785813,0.00032553,2]
[388023414,1758969032919,-471.05061932,0.00032602,120]
[388023416,1758969032927,-292.1789923,0.00032631,2]
[388023418,1758969032937,-1001.9181525,0.00032776,30]
[388023420,1758969032945,-224.32238903,0.0003284,2]
[388023422,1758969032955,-213.15488526,0.0003284,2]
[388023424,1758969032964,-726.376042,0.00032877,2]
[388023426,1758969032973,-4039.18130834,0.0003294,20]
[388023428,1758969032985,-3246.64,0.0003294,20]
[388023488,1758969038940,-251.98591168,0.00032939,7]
[388023490,1758969038950,-253.83843086,0.00032939,7]
[388023492,1758969038960,-10789.17565746,0.0003294,20]
[388023501,1758969039102,-987330.25444128,0.0003294,20]
[388023607,1758969040684,-3238.79335321,0.0003294,20]
[388023729,1758969043930,-300.0,0.000255,2]
[388023730,1758969043940,-192.066447,0.0003294,20]
[388023731,1758969043952,-31502.79238432,0.0003294,20]
[388023732,1758969043963,-2153.68396821,0.0003294,20]
[388023733,1758969043974,-256.2,0.0003294,20]
[388023735,1758969043986,-4775.82669707,0.0003294,20]
[388023739,1758969046731,-5000.0,0.00024953,13]
[388023740,1758969046741,-300.0,0.000257,2]
[388023741,1758969046751,-116515.71817732,0.0003294,20]
[388023742,1758969046762,-709.6301631,0.0003294,20]
[388023743,1758969046784,-2047.35571348,0.0003294,20]
[388023744,1758969046840,-19046.2855756,0.0003294,20]
[388023745,1758969047122,-3686.13621905,0.0003294,20]
[388023747,1758969224863,-5000.0,0.00024703,13]
[388023748,1758969334038,-208.02593212,0.00030136,120]
[388023749,1758969337382,0.01,0.00023753,11]
[388023750,1758969337404,157.99,0.00023753,11]
[388023751,1758969414579,5000.0,0.00024703,4]
[388023758,1758969449447,4842.02,0.00024703,2]
[388023759,1758969449470,157.98,0.00024703,2]
[388023760,1758969471855,5000.0,0.00024703,2]
[388023761,1758969479697,184.7,0.0001812,2]
[388023762,1758969480199,184.7,0.0001812,2]
[388023764,1758969483716,167.243571,0.00014938,2]
[388023765,1758969487441,160.0,0.00024703,2]
[388023770,1758969525398,-5000.0,0.00024953,2]
[388023771,1758969530732,0.01,0.00024953,2]
[388023772,1758969530753,4999.99,0.00024953,2]
[388023776,1758969538545,3177.71588859,0.00024953,2]
[388023777,1758969554500,1822.30411141,0.00024953,2]
[388023778,1758969554521,3177.69588859,0.00024953,2]
[388023780,1758969577615,5000.0,0.00024953,2]
[388023781,1758969591985,-167.243571,0.00029876,2]
[388023782,1758969592006,-65.80034227,0.00029959,2]
[388023783,1758969620864,-208.02593212,0.00024703,13]
[388023784,1758969636701,-153.03904431,0.00024703,13]
[388023785,1758969652794,-364.25717159,0.00024703,13]
[388023786,1758969667334,-349.96472033,0.00024703,13]
[388023787,1758969682237,-230.24667168,0.00024703,13]
[388023788,1758969698740,-213.89369824,0.00024703,13]
[388023789,1758969711167,-163.18138539,0.00024703,13]
[388023790,1758969726304,-229.28813037,0.00024703,13]
[388023791,1758969742656,-151.0,0.00024703,13]
[388023792,1758969756598,-225.34235109,0.00024703,13]
[388023793,1758969773149,-174.31641897,0.00024703,13]
[388023794,1758969788293,-174.31641897,0.00024703,13]
[388023795,1758969801571,-358.45560165,0.00024456,13]
[388023796,1758969816844,-174.31641897,0.00024211,13]
[388023797,1758969833766,-195.3909284,0.00024211,13]
[388023798,1758969847735,-228.527453,0.00024211,13]
[388023799,1758969862168,-151.0,0.00024211,13]
[388023800,1758969876229,-423.9183814,0.00024211,13]
[388023801,1758969891164,-190.23532649,0.00024211,13]
[388023802,1758969896206,-999.73954868,0.00024211,13]
[388023803,1758969907585,-162.1292252,0.00024456,13]
[388023804,1758969910772,-354.86056585,0.00024456,13]
[388023806,1758969916282,-256.91440648,0.00024456,13]
[388023807,1758969918684,-175.28595097,0.00024456,13]
[388023808,1758969920720,-233.04391327,0.00024456,13]
[388023809,1758969937652,-319.75766874,0.00024456,13]
[388023810,1758969943500,6580.13195284,0.0002421,2]
[388023811,1758969946193,-277.01999835,0.00024456,13]
[388023812,1758969951287,-208.02593212,0.00024456,13]
[388023813,1758969952654,1420.3989498,0.00024211,2]
[388023814,1758969952677,2735.9311622,0.00024211,2]
[388023815,1758969966768,-208.02593212,0.00024456,13]
[388023816,1758969975134,843.669888,0.00024211,2]
[388023817,1758969981254,-465.26730571,0.00024456,13]
[388023818,1758969997024,-168.05568648,0.00024627,2]
[388023819,1758970011746,-227.32182254,0.00024627,2]
[388023820,1758970014424,-227.32182254,0.00024627,2]
[388023821,1758970017100,-2025.66732796,0.00024627,2]
[388023822,1758970020817,227.32182254,0.00024211,2]
[388023823,1758970026639,-177.94075311,0.00024627,2]
[388023824,1758970038093,-228.46004269,0.00024627,2]
[388023825,1758970041268,-349.54945751,0.00024627,2]
[388023826,1758970051078,-333.26011436,0.00024627,2]
[388023827,1758970056958,-179.10629886,0.00024627,2]
[388023828,1758970071442,-328.54708538,0.00024627,2]
[388023829,1758970087135,-182.5258603,0.00024627,2]
[388023830,1758970101526,-271.9183814,0.00024627,2]
[388023831,1758970112884,160.0,0.00024211,2]
[388023832,1758970114964,304.85224945,0.0002421,2]
[388023833,1758970116299,-199.337,0.00024627,2]
[388023834,1758970150078,-100.98834687,0.00024627,2]
[388023835,1758970150101,-208.84403781,0.00024776,2]
[388023836,1758970150124,-140.96761532,0.00024876,13]
[388023837,1758970166558,5000.0,0.00024211,2]
[388023838,1758970171080,-178.87534309,0.00024527,2]
[388023839,1758970191607,728.23487781,0.00024211,2]
[388023840,1758970191628,1119.30023941,0.00024211,2]
[388023841,1758970199559,5000.0,0.00024211,2]
[388023842,1758970215261,5000.0,0.00024527,2]
[388023843,1758970223270,0.01,0.00024527,2]
[388023844,1758970223292,3056.44081764,0.00024527,2]
[388023845,1758970227982,161.0,9e-07,2]
[388023902,1758970231787,-25.75336089,0.00024527,2]
[388023904,1758970231796,-344.28844219,0.00024776,2]
[388023905,1758970231807,-49.10488298,0.00024776,2]
[388023906,1758970231816,-28.51178668,0.00024876,13]
[388023907,1758970231825,-401.0,0.00027198,2]
[388023908,1758970231834,-1000.0,0.000272,2]
[388023909,1758970231844,-272.0,0.00028126,2]
[388023910,1758970231853,-300.0,0.00028126,2]
[388023911,1758970231863,-289.0,0.00028126,2]
[388023912,1758970231871,-300.0,0.00028126,2]
[388023913,1758970231881,-5665.8313904,0.00028127,2]
[388023914,1758970231890,-1000.0,0.00029071,30]
[388023915,1758970231898,-178.1770971,0.00029303,2]
[388023916,1758970231907,-208.8440378,0.000299,2]
[388023917,1758970231916,-15871.24051983,0.000299,2]
[388023918,1758970231930,-4259.81854909,0.000299,2]
[388023919,1758970231952,-2577.99281836,0.000299,2]
[388023924,1758970232017,-9456.96678379,0.000299,2]
[388023927,1758970232057,-17833.98132893,0.000299,2]
[388023928,1758970232067,-165.6763876,0.00029957,2]
[388023930,1758970232076,-208.93229019,0.00029957,2]
[388023932,1758970232086,-301.03501378,0.00029957,2]
[388023934,1758970232096,-500.0,0.00029957,2]
[388023936,1758970232106,-500.0,0.00029957,2]
[388023938,1758970232119,-500.0,0.00029957,2]
[388023940,1758970232129,-500.0,0.00029957,2]
[388023942,1758970232138,-500.0,0.00029957,2]
[388023944,1758970232149,-500.0,0.00029957,2]
[388023946,1758970232158,-500.0,0.00029957,2]
[388023948,1758970232167,-500.0,0.00029957,2]